[Event "Titled Tuesday Blitz June 6 Early 2023"]
[White "Danielyan, Vahe"]
[Black "Richter, Paul"]
[WhiteFideId "13304828"]
[BlackFideId "2046350"]
[WhiteElo "2423"]
[BlackElo "2525"]
[Result "1-0"]
[Round "4"]
[TimeControl "180+2"]
[Date "2023.06.06"]
[WhiteClock "0:00:48"]
[BlackClock "0:00:05"]
[Board "54"]

1. d4 {[%clk 0:02:59]}  Nf6 {[%clk 0:02:59]} 2. c4 {[%clk 0:02:59]}  g6 {[%clk 0:02:59]} 3. Nc3 {[%clk 0:02:59]}  Bg7 {[%clk 0:02:59]} 4. g3 {[%clk 0:02:58]}  O-O {[%clk 0:02:59]} 5. Bg2 {[%clk 0:02:57]}  d6 {[%clk 0:03:00]} 6. Nf3 {[%clk 0:02:57]}  Nbd7 {[%clk 0:02:59]} 7. O-O {[%clk 0:02:56]}  e5 {[%clk 0:03:00]} 8. e4 {[%clk 0:02:53]}  exd4 {[%clk 0:03:00]} 9. Nxd4 {[%clk 0:02:53]}  Re8 {[%clk 0:03:01]} 10. Re1 {[%clk 0:02:45]}  a6 {[%clk 0:03:00]} 11. h3 {[%clk 0:02:44]}  Rb8 {[%clk 0:03:00]} 12. Be3 {[%clk 0:02:37]}  Ne5 {[%clk 0:03:00]} 13. Qe2 {[%clk 0:02:35]}  c5 {[%clk 0:02:55]} 14. Nc2 {[%clk 0:02:31]}  b5 {[%clk 0:02:54]} 15. cxb5 {[%clk 0:02:27]}  axb5 {[%clk 0:02:55]} 16. Nxb5 {[%clk 0:02:28]}  Ba6 {[%clk 0:02:43]} 17. a4 {[%clk 0:02:27]}  Bxb5 {[%clk 0:02:30]} 18. axb5 {[%clk 0:02:27]}  c4 {[%clk 0:01:54]} 19. b6 {[%clk 0:02:22]}  Nd3 {[%clk 0:01:52]} 20. Nd4 {[%clk 0:01:26]}  Rxb6 {[%clk 0:01:17]} 21. Reb1 {[%clk 0:01:25]}  Nxe4 {[%clk 0:01:07]} 22. Ra7 {[%clk 0:01:25]}  Nc3 {[%clk 0:00:29]} 23. Qf3 {[%clk 0:01:25]}  Qf6 {[%clk 0:00:30]} 24. Rba1 {[%clk 0:01:07]}  Qxf3 {[%clk 0:00:29]} 25. Bxf3 {[%clk 0:01:06]}  Rxb2 {[%clk 0:00:26]} 26. Nc6 {[%clk 0:00:59]}  Nb5 {[%clk 0:00:19]} 27. Ra8 {[%clk 0:00:58]}  Rf8 {[%clk 0:00:11]} 28. Ne7+ {[%clk 0:00:55]}  Kh8 {[%clk 0:00:11]} 29. Bg5 {[%clk 0:00:54]}  Rb1+ {[%clk 0:00:05]} 30. Rxb1 {[%clk 0:00:52]}  Rxa8 {[%clk 0:00:06]} 31. Bxa8 {[%clk 0:00:50]}  Bb2 {[%clk 0:00:04]} 32. Rxb2 {[%clk 0:00:48]}  Nxb2 {[%clk 0:00:05]} 33. Bf6# {[%clk 0:00:48]} 1-0


[Site "https://www.chess.com"]

[Event "Titled Tuesday Blitz June 6 Early 2023"]
[White "Chylewski, Patryk"]
[Black "Pakleza, Zbigniew"]
[WhiteFideId "1186191"]
[BlackFideId "1119290"]
[WhiteElo "2163"]
[BlackElo "2410"]
[Result "1/2-1/2"]
[Round "4"]
[TimeControl "180+2"]
[Date "2023.06.06"]
[WhiteClock "0:00:02"]
[BlackClock "0:00:02"]
[Board "55"]

1. e4 {[%clk 0:03:00]}  d6 {[%clk 0:03:00]} 2. d4 {[%clk 0:03:00]}  Nf6 {[%clk 0:03:00]} 3. Nc3 {[%clk 0:03:00]}  c6 {[%clk 0:03:01]} 4. a4 {[%clk 0:02:59]}  a5 {[%clk 0:03:00]} 5. h3 {[%clk 0:02:58]}  Nbd7 {[%clk 0:02:57]} 6. Be3 {[%clk 0:02:57]}  e5 {[%clk 0:02:58]} 7. g4 {[%clk 0:02:55]}  Be7 {[%clk 0:02:56]} 8. Bg2 {[%clk 0:02:55]}  O-O {[%clk 0:02:56]} 9. Nge2 {[%clk 0:02:55]}  Re8 {[%clk 0:02:54]} 10. O-O {[%clk 0:02:53]}  Bf8 {[%clk 0:02:43]} 11. Ng3 {[%clk 0:02:52]}  h6 {[%clk 0:02:19]} 12. f4 {[%clk 0:02:50]}  exd4 {[%clk 0:01:53]} 13. Bxd4 {[%clk 0:02:50]}  Nh7 {[%clk 0:01:34]} 14. Qd2 {[%clk 0:02:44]}  g6 {[%clk 0:01:23]} 15. Rae1 {[%clk 0:02:14]}  Nc5 {[%clk 0:01:17]} 16. Bxc5 {[%clk 0:02:03]}  dxc5 {[%clk 0:01:16]} 17. Qxd8 {[%clk 0:02:04]}  Rxd8 {[%clk 0:01:17]} 18. Rd1 {[%clk 0:01:57]}  Bd7 {[%clk 0:01:01]} 19. e5 {[%clk 0:01:56]}  Bg7 {[%clk 0:00:57]} 20. Nge4 {[%clk 0:01:54]}  b6 {[%clk 0:00:48]} 21. Nd6 {[%clk 0:01:54]}  g5 {[%clk 0:00:41]} 22. fxg5 {[%clk 0:01:40]}  Nxg5 {[%clk 0:00:31]} 23. h4 {[%clk 0:01:41]}  Bxe5 {[%clk 0:00:24]} 24. hxg5 {[%clk 0:01:38]}  Bxg4 {[%clk 0:00:25]} 25. Nxf7 {[%clk 0:01:23]}  Bd4+ {[%clk 0:00:25]} 26. Kh1 {[%clk 0:01:17]}  Bxd1 {[%clk 0:00:17]} 27. Nxd8 {[%clk 0:01:10]}  Bxc2 {[%clk 0:00:17]} 28. Nxc6 {[%clk 0:01:07]}  Re8 {[%clk 0:00:17]} 29. gxh6 {[%clk 0:00:58]}  Bxc3 {[%clk 0:00:10]} 30. bxc3 {[%clk 0:00:57]}  Bxa4 {[%clk 0:00:11]} 31. Rb1 {[%clk 0:00:31]}  Kh7 {[%clk 0:00:05]} 32. Rxb6 {[%clk 0:00:31]}  Kxh6 {[%clk 0:00:05]} 33. Nxa5+ {[%clk 0:00:30]}  Kg5 {[%clk 0:00:06]} 34. Nc4 {[%clk 0:00:23]}  Kf4 {[%clk 0:00:05]} 35. Rf6+ {[%clk 0:00:14]}  Kg3 {[%clk 0:00:05]} 36. Rg6+ {[%clk 0:00:14]}  Kf4 {[%clk 0:00:05]} 37. Nd6 {[%clk 0:00:10]}  Re1+ {[%clk 0:00:04]} 38. Kh2 {[%clk 0:00:11]}  Rc1 {[%clk 0:00:04]} 39. c4 {[%clk 0:00:11]}  Bb3 {[%clk 0:00:01]} 40. Bd5 {[%clk 0:00:11]}  Ke5 {[%clk 0:00:01]} 41. Nf7+ {[%clk 0:00:10]}  Kd4 {[%clk 0:00:02]} 42. Rg4+ {[%clk 0:00:10]}  Kc3 {[%clk 0:00:02]} 43. Nd6 {[%clk 0:00:09]}  Kb4 {[%clk 0:00:02]} 44. Kg3 {[%clk 0:00:06]}  Rd1 {[%clk 0:00:02]} 45. Kh4 {[%clk 0:00:04]}  Rf1 {[%clk 0:00:01]} 46. Kg5 {[%clk 0:00:04]}  Rd1 {[%clk 0:00:01]} 47. Rf4 {[%clk 0:00:04]}  Rd2 {[%clk 0:00:01]} 48. Kf5 {[%clk 0:00:05]}  Bc2+ {[%clk 0:00:02]} 49. Ke5 {[%clk 0:00:05]}  Re2+ {[%clk 0:00:02]} 50. Ne4 {[%clk 0:00:04]}  Re1 {[%clk 0:00:02]} 51. Rh4 {[%clk 0:00:03]}  Bd3 {[%clk 0:00:02]} 52. Kf5 {[%clk 0:00:02]}  Rf1+ {[%clk 0:00:01]} 53. Ke5 {[%clk 0:00:02]}  Re1 {[%clk 0:00:02]} 54. Rg4 {[%clk 0:00:03]}  Bxc4 {[%clk 0:00:02]} 55. Bxc4 {[%clk 0:00:02]}  Kxc4 {[%clk 0:00:03]} 56. Kf4 {[%clk 0:00:02]}  Kb3 {[%clk 0:00:02]} 57. Kf3 {[%clk 0:00:03]}  c4 {[%clk 0:00:02]} 58. Kf2 {[%clk 0:00:02]}  Rd1 {[%clk 0:00:02]} 59. Ke2 {[%clk 0:00:02]}  Rd4 {[%clk 0:00:02]} 60. Nd2+ {[%clk 0:00:02]}  Kc3 {[%clk 0:00:03]} 61. Nb1+ {[%clk 0:00:02]}  Kb2 {[%clk 0:00:03]} 62. Rxd4 {[%clk 0:00:03]}  c3 {[%clk 0:00:03]} 63. Rc4 {[%clk 0:00:03]}  c2 {[%clk 0:00:03]} 64. Rb4+ {[%clk 0:00:01]}  Ka1 {[%clk 0:00:02]} 65. Rc4 {[%clk 0:00:01]}  cxb1=Q {[%clk 0:00:02]} 66. Ra4+ {[%clk 0:00:02]}  Qa2+ {[%clk 0:00:01]} 67. Rxa2+ {[%clk 0:00:02]}  Kxa2 {[%clk 0:00:02]} 1/2-1/2


[Site "https://www.chess.com"]

[Event "Titled Tuesday Blitz June 6 Early 2023"]
[White "Koshulyan, Egor A."]
[Black "Vyatkin, Dmitry"]
[WhiteFideId "24237000"]
[BlackFideId "4171900"]
[WhiteElo "2216"]
[BlackElo "2279"]
[Result "1-0"]
[Round "4"]
[TimeControl "180+2"]
[Date "2023.06.06"]
[WhiteClock "0:00:29"]
[BlackClock "0:00:09"]
[Board "60"]

1. e4 {[%clk 0:03:00]}  e6 {[%clk 0:02:59]} 2. d4 {[%clk 0:03:00]}  d5 {[%clk 0:02:59]} 3. e5 {[%clk 0:03:01]}  c5 {[%clk 0:02:59]} 4. c3 {[%clk 0:03:01]}  Nc6 {[%clk 0:03:00]} 5. Nf3 {[%clk 0:03:02]}  Bd7 {[%clk 0:03:00]} 6. Na3 {[%clk 0:02:58]}  f6 {[%clk 0:02:56]} 7. Bd3 {[%clk 0:02:55]}  a6 {[%clk 0:02:49]} 8. Nc2 {[%clk 0:02:54]}  Qc7 {[%clk 0:02:49]} 9. O-O {[%clk 0:02:39]}  fxe5 {[%clk 0:02:29]} 10. Nxe5 {[%clk 0:02:39]}  Nxe5 {[%clk 0:02:29]} 11. Bf4 {[%clk 0:02:34]}  Nf6 {[%clk 0:02:04]} 12. Bxe5 {[%clk 0:02:32]}  Bd6 {[%clk 0:02:02]} 13. f4 {[%clk 0:02:32]}  O-O-O {[%clk 0:02:01]} 14. Ne3 {[%clk 0:02:09]}  Kb8 {[%clk 0:01:51]} 15. a4 {[%clk 0:02:10]}  Ka7 {[%clk 0:01:46]} 16. a5 {[%clk 0:02:09]}  Bb5 {[%clk 0:01:31]} 17. Bxb5 {[%clk 0:01:28]}  axb5 {[%clk 0:01:31]} 18. dxc5 {[%clk 0:01:29]}  Bxe5 {[%clk 0:01:28]} 19. fxe5 {[%clk 0:01:30]}  Qxe5 {[%clk 0:01:11]} 20. Nc2 {[%clk 0:01:26]}  Ne4 {[%clk 0:01:07]} 21. Nd4 {[%clk 0:01:22]}  Nxc5 {[%clk 0:00:48]} 22. Rf7 {[%clk 0:01:12]}  Qe3+ {[%clk 0:00:42]} 23. Kh1 {[%clk 0:01:12]}  Rd7 {[%clk 0:00:43]} 24. Rxd7 {[%clk 0:01:06]}  Nxd7 {[%clk 0:00:43]} 25. Nxb5+ {[%clk 0:01:05]}  Kb8 {[%clk 0:00:35]} 26. a6 {[%clk 0:01:05]}  b6 {[%clk 0:00:27]} 27. a7+ {[%clk 0:01:05]}  Kb7 {[%clk 0:00:27]} 28. Nc7 {[%clk 0:01:04]}  Kxc7 {[%clk 0:00:27]} 29. a8=Q {[%clk 0:01:04]}  Rxa8 {[%clk 0:00:27]} 30. Rxa8 {[%clk 0:01:04]}  Kd6 {[%clk 0:00:25]} 31. Ra1 {[%clk 0:00:56]}  g6 {[%clk 0:00:23]} 32. Qb3 {[%clk 0:00:55]}  h5 {[%clk 0:00:21]} 33. Qb4+ {[%clk 0:00:55]}  Qc5 {[%clk 0:00:21]} 34. Qf4+ {[%clk 0:00:55]}  Kc6 {[%clk 0:00:18]} 35. Qg5 {[%clk 0:00:50]}  Qb5 {[%clk 0:00:16]} 36. Qxg6 {[%clk 0:00:50]}  Qxb2 {[%clk 0:00:16]} 37. Qxe6+ {[%clk 0:00:50]}  Kc5 {[%clk 0:00:15]} 38. Rd1 {[%clk 0:00:50]}  Qb3 {[%clk 0:00:12]} 39. Rc1 {[%clk 0:00:38]}  Nb8 {[%clk 0:00:10]} 40. Qe3+ {[%clk 0:00:29]}  Kb5 {[%clk 0:00:09]} 41. Qd3+ {[%clk 0:00:29]}  Kc5 {[%clk 0:00:10]} 42. Rb1 {[%clk 0:00:29]}  Qc4 {[%clk 0:00:09]} 43. Qe3+ {[%clk 0:00:30]}  Kc6 {[%clk 0:00:09]} 44. Qxb6+ {[%clk 0:00:29]} 1-0


[Site "https://www.chess.com"]

[Event "Titled Tuesday Blitz June 6 Early 2023"]
[White "Andreev, Konstantin"]
[Black "Samunenkov, Ihor"]
[WhiteFideId "24239305"]
[BlackFideId "14187086"]
[WhiteElo "2106"]
[BlackElo "2457"]
[Result "1-0"]
[Round "4"]
[TimeControl "180+2"]
[Date "2023.06.06"]
[WhiteClock "0:01:03"]
[BlackClock "0:00:01"]
[Board "65"]

1. e4 {[%clk 0:02:54]}  c5 {[%clk 0:02:58]} 2. Nf3 {[%clk 0:02:53]}  Nc6 {[%clk 0:02:59]} 3. Nc3 {[%clk 0:02:53]}  g6 {[%clk 0:02:59]} 4. d4 {[%clk 0:02:53]}  cxd4 {[%clk 0:03:00]} 5. Nxd4 {[%clk 0:02:53]}  Bg7 {[%clk 0:03:00]} 6. Be3 {[%clk 0:02:53]}  Nf6 {[%clk 0:03:01]} 7. Bc4 {[%clk 0:02:53]}  O-O {[%clk 0:03:01]} 8. Bb3 {[%clk 0:02:53]}  Re8 {[%clk 0:03:01]} 9. f3 {[%clk 0:02:44]}  e6 {[%clk 0:03:01]} 10. f4 {[%clk 0:02:44]}  d6 {[%clk 0:03:01]} 11. Qd2 {[%clk 0:02:43]}  Ng4 {[%clk 0:02:51]} 12. Bg1 {[%clk 0:02:43]}  Nxd4 {[%clk 0:02:29]} 13. Bxd4 {[%clk 0:02:39]}  e5 {[%clk 0:02:30]} 14. fxe5 {[%clk 0:02:37]}  dxe5 {[%clk 0:02:13]} 15. Bg1 {[%clk 0:02:29]}  Qh4+ {[%clk 0:02:05]} 16. g3 {[%clk 0:02:28]}  Qh3 {[%clk 0:02:05]} 17. Nd5 {[%clk 0:02:17]}  Be6 {[%clk 0:02:02]} 18. Qe2 {[%clk 0:02:01]}  Bh6 {[%clk 0:00:54]} 19. Nc7 {[%clk 0:01:59]}  Bxb3 {[%clk 0:00:52]} 20. axb3 {[%clk 0:01:59]}  Red8 {[%clk 0:00:50]} 21. Nxa8 {[%clk 0:01:33]}  Bd2+ {[%clk 0:00:46]} 22. Kd1 {[%clk 0:01:26]}  Bc3+ {[%clk 0:00:37]} 23. Kc1 {[%clk 0:01:23]}  Bd2+ {[%clk 0:00:12]} 24. Kb1 {[%clk 0:01:23]}  Rxa8 {[%clk 0:00:12]} 25. Qxd2 {[%clk 0:01:14]}  Qf1+ {[%clk 0:00:12]} 26. Qc1 {[%clk 0:01:14]}  Qg2 {[%clk 0:00:12]} 27. Bxa7 {[%clk 0:01:14]}  Qxe4 {[%clk 0:00:10]} 28. Re1 {[%clk 0:01:12]}  Qg2 {[%clk 0:00:07]} 29. Bc5 {[%clk 0:01:09]}  Rc8 {[%clk 0:00:07]} 30. b4 {[%clk 0:01:09]}  e4 {[%clk 0:00:04]} 31. Ra3 {[%clk 0:01:07]}  Rd8 {[%clk 0:00:01]} 32. Rd1 {[%clk 0:01:05]}  Re8 {[%clk 0:00:01]} 33. Qd2 {[%clk 0:01:04]}  Qf3 {[%clk 0:00:01]} 34. Rxf3 {[%clk 0:01:03]} 1-0


[Site "https://www.chess.com"]

[Event "Titled Tuesday Blitz June 6 Early 2023"]
[White "Kleiman, Jake"]
[Black "Grunberg, Mihai-Lucian"]
[WhiteFideId "2020041"]
[BlackFideId "1204149"]
[WhiteElo "2673"]
[BlackElo "2363"]
[Result "1-0"]
[Round "4"]
[TimeControl "180+2"]
[Date "2023.06.06"]
[WhiteClock "0:01:52"]
[BlackClock "0:02:16"]
[Board "71"]

1. e4 {[%clk 0:02:56]}  c5 {[%clk 0:02:59]} 2. c3 {[%clk 0:02:56]}  e6 {[%clk 0:02:56]} 3. d4 {[%clk 0:02:57]}  d5 {[%clk 0:02:57]} 4. exd5 {[%clk 0:02:58]}  Qxd5 {[%clk 0:02:57]} 5. Nf3 {[%clk 0:02:59]}  Nc6 {[%clk 0:02:56]} 6. Na3 {[%clk 0:02:59]}  cxd4 {[%clk 0:02:55]} 7. Nb5 {[%clk 0:02:58]}  Qc5 {[%clk 0:02:42]} 8. Nc7+ {[%clk 0:02:57]}  Kd8 {[%clk 0:02:41]} 9. Nxa8 {[%clk 0:02:55]}  b6 {[%clk 0:02:41]} 10. Nxd4 {[%clk 0:02:44]}  Nxd4 {[%clk 0:02:38]} 11. Be3 {[%clk 0:02:10]}  Qd5 {[%clk 0:02:26]} 12. Qxd4 {[%clk 0:02:08]}  Bb7 {[%clk 0:02:24]} 13. Qa4 {[%clk 0:01:53]}  Bxa8 {[%clk 0:02:16]} 14. Rd1 {[%clk 0:01:52]} 1-0


[Site "https://www.chess.com"]

[Event "Titled Tuesday Blitz June 6 Early 2023"]
[White "Ashraf, Artin"]
[Black "Jiang, Brian"]
[WhiteFideId "22514805"]
[BlackFideId "2627922"]
[WhiteElo "2224"]
[BlackElo "2462"]
[Result "1-0"]
[Round "4"]
[TimeControl "180+2"]
[Date "2023.06.06"]
[WhiteClock "0:00:28"]
[BlackClock "0:00:16"]
[Board "72"]

1. c4 {[%clk 0:02:04]}  e5 {[%clk 0:02:55]} 2. d3 {[%clk 0:02:01]}  f5 {[%clk 0:02:51]} 3. Nf3 {[%clk 0:01:59]}  d6 {[%clk 0:02:50]} 4. g3 {[%clk 0:01:57]}  Nf6 {[%clk 0:02:49]} 5. Bg2 {[%clk 0:01:58]}  Be7 {[%clk 0:02:46]} 6. O-O {[%clk 0:01:57]}  c6 {[%clk 0:02:40]} 7. Nc3 {[%clk 0:01:57]}  O-O {[%clk 0:02:39]} 8. b4 {[%clk 0:01:54]}  a5 {[%clk 0:02:38]} 9. b5 {[%clk 0:01:53]}  Kh8 {[%clk 0:02:33]} 10. bxc6 {[%clk 0:01:48]}  bxc6 {[%clk 0:02:34]} 11. c5 {[%clk 0:01:48]}  dxc5 {[%clk 0:02:15]} 12. Nxe5 {[%clk 0:01:31]}  Qd4 {[%clk 0:02:12]} 13. Nc4 {[%clk 0:01:31]}  Qxc3 {[%clk 0:02:03]} 14. Bb2 {[%clk 0:01:30]}  Qb4 {[%clk 0:02:00]} 15. Rb1 {[%clk 0:01:25]}  Nd5 {[%clk 0:01:29]} 16. Qc2 {[%clk 0:00:59]}  Qb7 {[%clk 0:01:24]} 17. Bxg7+ {[%clk 0:00:58]}  Kxg7 {[%clk 0:01:25]} 18. Rxb7 {[%clk 0:00:57]}  Bxb7 {[%clk 0:01:26]} 19. Qb2+ {[%clk 0:00:58]}  Nf6 {[%clk 0:01:01]} 20. Qxb7 {[%clk 0:00:57]}  Nbd7 {[%clk 0:01:02]} 21. Qxc6 {[%clk 0:00:49]}  Rab8 {[%clk 0:00:50]} 22. Qe6 {[%clk 0:00:48]}  Rf7 {[%clk 0:00:38]} 23. Nxa5 {[%clk 0:00:47]}  Rb2 {[%clk 0:00:32]} 24. Nc4 {[%clk 0:00:40]}  Nf8 {[%clk 0:00:27]} 25. Qxf7+ {[%clk 0:00:37]}  Kxf7 {[%clk 0:00:28]} 26. Nxb2 {[%clk 0:00:37]}  Ne6 {[%clk 0:00:26]} 27. a4 {[%clk 0:00:34]}  Bd8 {[%clk 0:00:25]} 28. Nc4 {[%clk 0:00:33]}  Nd4 {[%clk 0:00:24]} 29. e3 {[%clk 0:00:33]}  Nc2 {[%clk 0:00:21]} 30. a5 {[%clk 0:00:30]}  Nb4 {[%clk 0:00:21]} 31. Ra1 {[%clk 0:00:28]}  Na6 {[%clk 0:00:19]} 32. Bb7 {[%clk 0:00:27]}  Nb4 {[%clk 0:00:16]} 33. a6 {[%clk 0:00:28]} 1-0


[Site "https://www.chess.com"]

[Event "Titled Tuesday Blitz June 6 Early 2023"]
[White "KorolDimitriy75"]
[Black "Souleidis, Georgios"]
[BlackFideId "4206827"]
[WhiteElo "2463"]
[BlackElo "2401"]
[Result "0-1"]
[Round "4"]
[TimeControl "180+2"]
[Date "2023.06.06"]
[WhiteClock "0:00:02"]
[BlackClock "0:00:03"]
[Board "73"]

1. d4 {[%clk 0:02:57]}  Nf6 {[%clk 0:02:59]} 2. c4 {[%clk 0:02:57]}  g6 {[%clk 0:03:00]} 3. Nc3 {[%clk 0:02:57]}  Bg7 {[%clk 0:03:00]} 4. e4 {[%clk 0:02:56]}  d6 {[%clk 0:03:01]} 5. Nf3 {[%clk 0:02:56]}  O-O {[%clk 0:03:01]} 6. Be2 {[%clk 0:02:57]}  e5 {[%clk 0:03:01]} 7. dxe5 {[%clk 0:02:58]}  dxe5 {[%clk 0:03:02]} 8. Qxd8 {[%clk 0:02:58]}  Rxd8 {[%clk 0:03:03]} 9. Bg5 {[%clk 0:02:58]}  c6 {[%clk 0:03:03]} 10. Nxe5 {[%clk 0:02:57]}  Re8 {[%clk 0:03:04]} 11. O-O-O {[%clk 0:02:57]}  Na6 {[%clk 0:03:04]} 12. Rd6 {[%clk 0:02:56]}  Be6 {[%clk 0:03:03]} 13. f4 {[%clk 0:02:54]}  h6 {[%clk 0:03:02]} 14. Bh4 {[%clk 0:02:53]}  Nc5 {[%clk 0:02:48]} 15. Bf3 {[%clk 0:02:52]}  g5 {[%clk 0:02:30]} 16. Bf2 {[%clk 0:02:52]}  Na6 {[%clk 0:02:07]} 17. g3 {[%clk 0:02:52]}  Bf8 {[%clk 0:01:30]} 18. Rd2 {[%clk 0:02:51]}  Bb4 {[%clk 0:01:26]} 19. Kc2 {[%clk 0:02:47]}  Nc5 {[%clk 0:01:22]} 20. Re1 {[%clk 0:02:24]}  g4 {[%clk 0:01:15]} 21. Bg2 {[%clk 0:02:22]}  Ncxe4 {[%clk 0:00:47]} 22. Nxe4 {[%clk 0:01:23]}  Nxe4 {[%clk 0:00:47]} 23. Bxe4 {[%clk 0:01:22]}  Bxd2 {[%clk 0:00:47]} 24. Kxd2 {[%clk 0:01:22]}  f6 {[%clk 0:00:45]} 25. f5 {[%clk 0:01:17]}  Rad8+ {[%clk 0:00:27]} 26. Kc3 {[%clk 0:01:14]}  Bc8 {[%clk 0:00:27]} 27. Ng6 {[%clk 0:01:09]}  Kg7 {[%clk 0:00:24]} 28. Nf4 {[%clk 0:00:47]}  Kf7 {[%clk 0:00:19]} 29. Bd3 {[%clk 0:00:42]}  Rxe1 {[%clk 0:00:18]} 30. Bxe1 {[%clk 0:00:43]}  Re8 {[%clk 0:00:19]} 31. Bf2 {[%clk 0:00:43]}  b6 {[%clk 0:00:18]} 32. a4 {[%clk 0:00:41]}  Re5 {[%clk 0:00:16]} 33. Kd4 {[%clk 0:00:22]}  c5+ {[%clk 0:00:16]} 34. Kc3 {[%clk 0:00:21]}  Bxf5 {[%clk 0:00:15]} 35. Bxf5 {[%clk 0:00:21]}  Rxf5 {[%clk 0:00:16]} 36. Kd3 {[%clk 0:00:21]}  Re5 {[%clk 0:00:16]} 37. Be3 {[%clk 0:00:21]}  f5 {[%clk 0:00:15]} 38. Nd5 {[%clk 0:00:21]}  Re4 {[%clk 0:00:12]} 39. b3 {[%clk 0:00:19]}  h5 {[%clk 0:00:12]} 40. Nf4 {[%clk 0:00:19]}  h4 {[%clk 0:00:10]} 41. gxh4 {[%clk 0:00:19]}  Re8 {[%clk 0:00:10]} 42. h5 {[%clk 0:00:19]}  Kf6 {[%clk 0:00:10]} 43. Nd5+ {[%clk 0:00:17]}  Kg7 {[%clk 0:00:11]} 44. h6+ {[%clk 0:00:15]}  Kh8 {[%clk 0:00:11]} 45. Bg5 {[%clk 0:00:14]}  Re1 {[%clk 0:00:09]} 46. Bf6+ {[%clk 0:00:14]}  Kh7 {[%clk 0:00:09]} 47. Bg7 {[%clk 0:00:15]}  Rh1 {[%clk 0:00:03]} 48. Nf6+ {[%clk 0:00:12]}  Kg6 {[%clk 0:00:03]} 49. Nd7 {[%clk 0:00:07]}  Rxh2 {[%clk 0:00:03]} 50. Ke3 {[%clk 0:00:05]}  g3 {[%clk 0:00:03]} 51. Nf8+ {[%clk 0:00:03]}  Kf7 {[%clk 0:00:03]} 52. Kf3 {[%clk 0:00:02]}  f4 {[%clk 0:00:03]} 0-1


[Site "https://www.chess.com"]

[Event "Titled Tuesday Blitz June 6 Early 2023"]
[White "Chan, Kim Yew"]
[Black "Jeet, Jain"]
[WhiteFideId "5717981"]
[BlackFideId "5073022"]
[WhiteElo "2206"]
[BlackElo "2067"]
[Result "0-1"]
[Round "4"]
[TimeControl "180+2"]
[Date "2023.06.06"]
[WhiteClock "0:00:02"]
[BlackClock "0:01:04"]
[Board "76"]

1. Nf3 {[%clk 0:03:00]}  c5 {[%clk 0:02:52]} 2. c4 {[%clk 0:03:01]}  Nc6 {[%clk 0:02:51]} 3. d4 {[%clk 0:03:00]}  cxd4 {[%clk 0:02:46]} 4. Nxd4 {[%clk 0:03:01]}  Nf6 {[%clk 0:02:45]} 5. Nc3 {[%clk 0:03:01]}  e6 {[%clk 0:02:45]} 6. a3 {[%clk 0:03:00]}  Qb6 {[%clk 0:02:45]} 7. e3 {[%clk 0:02:53]}  a6 {[%clk 0:02:43]} 8. Be2 {[%clk 0:02:49]}  Be7 {[%clk 0:02:43]} 9. O-O {[%clk 0:02:48]}  O-O {[%clk 0:02:43]} 10. b4 {[%clk 0:02:45]}  Rd8 {[%clk 0:02:42]} 11. c5 {[%clk 0:02:38]}  Qc7 {[%clk 0:02:41]} 12. Qb3 {[%clk 0:01:52]}  d6 {[%clk 0:02:35]} 13. Nxc6 {[%clk 0:01:52]}  Qxc6 {[%clk 0:02:32]} 14. cxd6 {[%clk 0:01:30]}  Bxd6 {[%clk 0:02:30]} 15. Bb2 {[%clk 0:01:31]}  Qc7 {[%clk 0:02:27]} 16. g3 {[%clk 0:01:31]}  b6 {[%clk 0:02:22]} 17. Rac1 {[%clk 0:01:27]}  Qe7 {[%clk 0:02:22]} 18. Na4 {[%clk 0:01:03]}  Rb8 {[%clk 0:02:10]} 19. Bf3 {[%clk 0:00:50]}  Bb7 {[%clk 0:02:00]} 20. Bxb7 {[%clk 0:00:50]}  Qxb7 {[%clk 0:02:01]} 21. Bxf6 {[%clk 0:00:48]}  gxf6 {[%clk 0:02:01]} 22. Rfd1 {[%clk 0:00:37]}  Qf3 {[%clk 0:01:58]} 23. Nc3 {[%clk 0:00:30]}  Kg7 {[%clk 0:01:54]} 24. Qc4 {[%clk 0:00:25]}  f5 {[%clk 0:01:39]} 25. Qxa6 {[%clk 0:00:16]}  Rbc8 {[%clk 0:01:37]} 26. Qe2 {[%clk 0:00:16]}  Qa8 {[%clk 0:01:32]} 27. Nb5 {[%clk 0:00:15]}  Rxc1 {[%clk 0:01:31]} 28. Rxc1 {[%clk 0:00:16]}  Be5 {[%clk 0:01:30]} 29. Rd1 {[%clk 0:00:16]}  Rc8 {[%clk 0:01:27]} 30. Qd2 {[%clk 0:00:17]}  Qf3 {[%clk 0:01:26]} 31. Qd3 {[%clk 0:00:16]}  h5 {[%clk 0:01:23]} 32. Nd4 {[%clk 0:00:16]}  Qa8 {[%clk 0:01:20]} 33. Qe2 {[%clk 0:00:11]}  Rh8 {[%clk 0:01:19]} 34. Nf3 {[%clk 0:00:09]}  Bf6 {[%clk 0:01:18]} 35. Rd3 {[%clk 0:00:10]}  h4 {[%clk 0:01:17]} 36. Nd2 {[%clk 0:00:03]}  h3 {[%clk 0:01:15]} 37. Qf3 {[%clk 0:00:03]}  Qa6 {[%clk 0:01:15]} 38. Rb3 {[%clk 0:00:02]}  Rd8 {[%clk 0:01:15]} 39. Nf1 {[%clk 0:00:01]}  Qc4 {[%clk 0:01:13]} 40. Rb1 {[%clk 0:00:01]}  Qa2 {[%clk 0:01:12]} 41. Rd1 {[%clk 0:00:01]}  Rh8 {[%clk 0:01:05]} 42. Rd2 {[%clk 0:00:01]}  Qxa3 {[%clk 0:01:05]} 43. Qf4 {[%clk 0:00:02]}  Qa8 {[%clk 0:01:04]} 44. Rd1 {[%clk 0:00:02]}  Qg2# {[%clk 0:01:04]} 0-1


[Site "https://www.chess.com"]